[Event "*** Titled Tuesday Blitz"]
[Site "Chess.com"]
[Date "2018.05.01"]
[Round "5"]
[White "GMSrinath"]
[Black "Indianlad"]
[Result "0-1"]
[WhiteElo "2737"]
[BlackElo "2648"]
[TimeControl "180+2"]
[EndTime "14:02:17 PDT"]
[Termination "Indianlad won by resignation"]

1. e4 {[%clk 0:03:01.5]} 1... e5 {[%clk 0:02:58.3]} 2. Nf3 {[%clk 0:03:02.1]}
2... Nc6 {[%clk 0:03:00.2]} 3. Bc4 {[%clk 0:03:03.6]} 3... Bc5 {[%clk
0:03:00.6]} 4. c3 {[%clk 0:03:04.5]} 4... Nf6 {[%clk 0:03:01.7]} 5. d4 {[%clk
0:03:05.7]} 5... exd4 {[%clk 0:03:02.1]} 6. e5 {[%clk 0:03:06.9]} 6... d5 {[%clk
0:03:03.2]} 7. Bb5 {[%clk 0:03:07.9]} 7... Ne4 {[%clk 0:03:03.5]} 8. cxd4 {[%clk
0:03:09]} 8... Bb6 {[%clk 0:03:04.7]} 9. Nc3 {[%clk 0:03:03.1]} 9... O-O {[%clk
0:03:05.9]} 10. Be3 {[%clk 0:02:57]} 10... Bg4 {[%clk 0:03:06.6]} 11. Qc2 {[%clk
0:02:55.6]} 11... Bf5 {[%clk 0:03:05.4]} 12. Bd3 {[%clk 0:02:48.2]} 12... Nb4
{[%clk 0:03:04.6]} 13. Qe2 {[%clk 0:02:46.1]} 13... Nxc3 {[%clk 0:03:03.4]} 14.
bxc3 {[%clk 0:02:46.3]} 14... Bxd3 {[%clk 0:03:00]} 15. Qb2 {[%clk 0:02:46.3]}
15... Nc2+ {[%clk 0:02:55.4]} 16. Kd2 {[%clk 0:02:47.2]} 16... Bg6 {[%clk
0:02:56]} 17. Raf1 {[%clk 0:02:45]} 17... Nxe3 {[%clk 0:02:52.4]} 18. fxe3
{[%clk 0:02:46.9]} 18... c5 {[%clk 0:02:53.9]} 19. h4 {[%clk 0:02:47.2]} 19...
cxd4 {[%clk 0:02:51.6]} 20. Nxd4 {[%clk 0:02:47.3]} 20... Rc8 {[%clk 0:02:49.9]}
21. h5 {[%clk 0:02:45.5]} 21... Be4 {[%clk 0:02:50.5]} 22. h6 {[%clk 0:02:47.1]}
22... Bxd4 {[%clk 0:02:50.4]} 23. exd4 {[%clk 0:02:47.2]} 23... Qg5+ {[%clk
0:02:51]} 24. Ke1 {[%clk 0:02:48.7]} 24... Qe3+ {[%clk 0:02:50.2]} 25. Kd1
{[%clk 0:02:48.9]} 25... Rxc3 {[%clk 0:02:47.3]} 26. Qd2 {[%clk 0:02:38.2]} 0-1

[Event "*** Titled Tuesday Blitz"]
[Site "Chess.com"]
[Date "2018.05.01"]
[Round "5"]
[White "LikeWater"]
[Black "LawrenceTrent"]
[Result "0-1"]
[WhiteElo "2489"]
[BlackElo "2468"]
[TimeControl "180+2"]
[EndTime "14:02:25 PDT"]
[Termination "LawrenceTrent won by resignation"]

1. e4 {[%clk 0:03:01.9]} 1... e5 {[%clk 0:03:00.9]} 2. Nf3 {[%clk 0:03:02.8]}
2... Nc6 {[%clk 0:03:02.3]} 3. Bc4 {[%clk 0:03:04.4]} 3... Nf6 {[%clk 0:03:03]}
4. d3 {[%clk 0:03:05.2]} 4... h6 {[%clk 0:03:04.1]} 5. a4 {[%clk 0:03:05.4]}
5... d6 {[%clk 0:03:04.9]} 6. a5 {[%clk 0:03:05.9]} 6... a6 {[%clk 0:03:05.4]}
7. h3 {[%clk 0:02:58.1]} 7... g6 {[%clk 0:03:01.9]} 8. c3 {[%clk 0:02:55]} 8...
Bg7 {[%clk 0:03:02.8]} 9. O-O {[%clk 0:02:51.7]} 9... O-O {[%clk 0:02:55.8]} 10.
Nbd2 {[%clk 0:02:48.6]} 10... Be6 {[%clk 0:02:45.7]} 11. Bxe6 {[%clk 0:02:41.6]}
11... fxe6 {[%clk 0:02:47.6]} 12. Qb3 {[%clk 0:02:42.6]} 12... Qd7 {[%clk
0:02:48.8]} 13. d4 {[%clk 0:02:42.5]} 13... exd4 {[%clk 0:02:48.4]} 14. cxd4
{[%clk 0:02:38.1]} 14... d5 {[%clk 0:02:48.3]} 15. Re1 {[%clk 0:02:34.3]} 15...
dxe4 {[%clk 0:02:13.8]} 16. Nxe4 {[%clk 0:02:28.3]} 16... Nxe4 {[%clk
0:02:14.1]} 17. Rxe4 {[%clk 0:02:30.2]} 17... Qd5 {[%clk 0:02:07.4]} 18. Rg4
{[%clk 0:02:23.3]} 18... Qxb3 {[%clk 0:02:07.1]} 0-1

[Event "*** Titled Tuesday Blitz"]
[Site "Chess.com"]
[Date "2018.05.01"]
[Round "5"]
[White "AlexanderL"]
[Black "sergiochess83"]
[Result "0-1"]
[WhiteElo "2578"]
[BlackElo "2801"]
[TimeControl "180+2"]
[EndTime "14:02:39 PDT"]
[Termination "sergiochess83 won by resignation"]

1. Nf3 {[%clk 0:03:01.9]} 1... Nf6 {[%clk 0:02:59.2]} 2. c4 {[%clk 0:03:02]}
2... e6 {[%clk 0:02:57.1]} 3. Nc3 {[%clk 0:03:01.7]} 3... d5 {[%clk 0:02:58.1]}
4. e3 {[%clk 0:03:02.8]} 4... Bd6 {[%clk 0:02:45.9]} 5. d4 {[%clk 0:02:53.1]}
5... O-O {[%clk 0:02:45]} 6. Qc2 {[%clk 0:02:49.9]} 6... a6 {[%clk 0:02:45.3]}
7. c5 {[%clk 0:02:36.7]} 7... Be7 {[%clk 0:02:45.7]} 8. Bd3 {[%clk 0:02:38]}
8... b6 {[%clk 0:02:31.8]} 9. e4 {[%clk 0:02:37.5]} 9... bxc5 {[%clk 0:02:20.8]}
10. e5 {[%clk 0:02:31]} 10... Nfd7 {[%clk 0:02:21.7]} 11. Bxh7+ {[%clk
0:02:31.3]} 11... Kh8 {[%clk 0:02:22.9]} 12. dxc5 {[%clk 0:02:26.9]} 12... Nc6
{[%clk 0:02:22.3]} 13. Bf4 {[%clk 0:02:27.1]} 13... Nb4 {[%clk 0:02:02.6]} 14.
Qb1 {[%clk 0:02:27.2]} 14... g6 {[%clk 0:02:03]} 15. Bxg6 {[%clk 0:02:27.1]}
15... fxg6 {[%clk 0:02:04.2]} 16. Qxg6 {[%clk 0:02:28.1]} 16... Rxf4 {[%clk
0:02:04.6]} 17. Qh6+ {[%clk 0:02:29.3]} 17... Kg8 {[%clk 0:02:05.8]} 18. Qg6+
{[%clk 0:02:30.6]} 18... Kf8 {[%clk 0:02:00.1]} 19. Qh6+ {[%clk 0:02:32.5]}
19... Ke8 {[%clk 0:01:52.3]} 0-1

[Event "*** Titled Tuesday Blitz"]
[Site "Chess.com"]
[Date "2018.05.01"]
[Round "5"]
[White "tteshan"]
[Black "aa175"]
[Result "1-0"]
[WhiteElo "1982"]
[BlackElo "1858"]
[TimeControl "180+2"]
[EndTime "14:04:15 PDT"]
[Termination "tteshan won by resignation"]

1. d4 {[%clk 0:03:01.9]} 1... e5 {[%clk 0:02:52.8]} 2. dxe5 {[%clk 0:03:02.3]}
2... Nc6 {[%clk 0:02:53.7]} 3. Nf3 {[%clk 0:03:01.6]} 3... Qe7 {[%clk
0:02:54.8]} 4. Bf4 {[%clk 0:03:01]} 4... Qb4+ {[%clk 0:02:55.1]} 5. Nc3 {[%clk
0:03:02.4]} 5... Qxf4 {[%clk 0:02:55.4]} 6. Nd5 {[%clk 0:03:03.9]} 6... Qa4
{[%clk 0:02:27.1]} 7. Nxc7+ {[%clk 0:03:04.7]} 7... Kd8 {[%clk 0:02:28.5]} 8.
Nxa8 {[%clk 0:03:04.9]} 8... Nb4 {[%clk 0:02:23.5]} 9. Nd4 {[%clk 0:02:56.6]}
9... Bc5 {[%clk 0:02:18]} 10. c3 {[%clk 0:02:50.2]} 10... Qa5 {[%clk 0:02:07.6]}
11. Nb3 {[%clk 0:02:43]} 11... Bxf2+ {[%clk 0:01:45.1]} 12. Kxf2 {[%clk
0:02:42.3]} 12... Qb6+ {[%clk 0:01:47]} 13. Nxb6 {[%clk 0:02:36.8]} 13... axb6
{[%clk 0:01:41.1]} 14. cxb4 {[%clk 0:02:36.8]} 14... Ne7 {[%clk 0:01:42.7]} 15.
Qd6 {[%clk 0:02:34.4]} 15... Nc6 {[%clk 0:01:42.7]} 16. Nd4 {[%clk 0:02:28.4]}
16... Re8 {[%clk 0:01:38.8]} 17. Nxc6+ {[%clk 0:02:28.7]} 17... bxc6 {[%clk
0:01:40.7]} 18. e4 {[%clk 0:02:26.1]} 18... Re6 {[%clk 0:01:42.6]} 19. Qf8+
{[%clk 0:02:25.4]} 19... Kc7 {[%clk 0:01:44.5]} 20. Qxf7 {[%clk 0:02:24.7]}
20... Rxe5 {[%clk 0:01:46.4]} 21. Qf4 {[%clk 0:02:23.7]} 21... d6 {[%clk
0:01:47.9]} 22. Rd1 {[%clk 0:02:21.5]} 22... Re6 {[%clk 0:01:47.7]} 23. Kg1
{[%clk 0:02:16.5]} 23... Bd7 {[%clk 0:01:44.3]} 24. Bc4 {[%clk 0:02:15.1]} 24...
Rf6 {[%clk 0:01:42.6]} 25. Qe3 {[%clk 0:02:15.2]} 25... b5 {[%clk 0:01:42]} 26.
e5 {[%clk 0:02:11.2]} 26... bxc4 {[%clk 0:01:38.6]} 27. exf6 {[%clk 0:02:11.8]}
27... gxf6 {[%clk 0:01:40.5]} 28. Qd4 {[%clk 0:02:12.1]} 28... d5 {[%clk
0:01:38.8]} 29. Qxf6 {[%clk 0:02:12.5]} 29... Be6 {[%clk 0:01:39.6]} 30. Qxe6
{[%clk 0:02:12.7]} 30... c5 {[%clk 0:01:41.5]} 31. bxc5 {[%clk 0:02:12.6]} 31...
c3 {[%clk 0:01:43.3]} 32. bxc3 {[%clk 0:02:12.9]} 32... d4 {[%clk 0:01:45.2]}
33. Rxd4 {[%clk 0:02:13.5]} 33... h5 {[%clk 0:01:45.7]} 34. Rd7+ {[%clk
0:02:13.3]} 34... Kc8 {[%clk 0:01:43.4]} 1-0

[Event "*** Titled Tuesday Blitz"]
[Site "Chess.com"]
[Date "2018.05.01"]
[Round "5"]
[White "Alopekos"]
[Black "Supernotar"]
[Result "1-0"]
[WhiteElo "2330"]
[BlackElo "2483"]
[TimeControl "180+2"]
[EndTime "14:04:23 PDT"]
[Termination "Alopekos won by checkmate"]

1. e4 {[%clk 0:03:01.9]} 1... c6 {[%clk 0:02:54.6]} 2. d4 {[%clk 0:03:02.6]}
2... d5 {[%clk 0:02:53.4]} 3. Nd2 {[%clk 0:03:04]} 3... dxe4 {[%clk 0:02:53.6]}
4. Nxe4 {[%clk 0:03:05.9]} 4... Bf5 {[%clk 0:02:53.7]} 5. Ng3 {[%clk 0:03:07]}
5... Bg6 {[%clk 0:02:54.2]} 6. h4 {[%clk 0:03:08.7]} 6... h6 {[%clk 0:02:54.7]}
7. Nf3 {[%clk 0:03:10.2]} 7... Nd7 {[%clk 0:02:55]} 8. h5 {[%clk 0:03:10.9]}
8... Bh7 {[%clk 0:02:56.1]} 9. Bd3 {[%clk 0:03:12.8]} 9... Bxd3 {[%clk 0:02:57]}
10. Qxd3 {[%clk 0:03:14.7]} 10... e6 {[%clk 0:02:55.8]} 11. Bd2 {[%clk
0:03:15.5]} 11... Ngf6 {[%clk 0:02:56.6]} 12. O-O-O {[%clk 0:03:16.7]} 12... Be7
{[%clk 0:02:57.3]} 13. Kb1 {[%clk 0:03:17.2]} 13... O-O {[%clk 0:02:55.2]} 14.
Qe2 {[%clk 0:03:17.9]} 14... c5 {[%clk 0:02:50.5]} 15. d5 {[%clk 0:03:19]} 15...
Nxd5 {[%clk 0:02:47.6]} 16. Ne4 {[%clk 0:03:19.8]} 16... Qc7 {[%clk 0:02:42.3]}
17. g4 {[%clk 0:03:18.7]} 17... f5 {[%clk 0:02:36.1]} 18. gxf5 {[%clk
0:03:08.5]} 18... Rxf5 {[%clk 0:02:30.7]} 19. Rhg1 {[%clk 0:02:37.5]} 19... Raf8
{[%clk 0:02:22.9]} 20. Bxh6 {[%clk 0:02:22.7]} 20... Rxf3 {[%clk 0:02:22.9]} 21.
Bxg7 {[%clk 0:01:20.2]} 21... Kh7 {[%clk 0:02:07.6]} 22. Bxf8 {[%clk 0:00:58.8]}
22... Rxf8 {[%clk 0:02:07.7]} 23. Qg4 {[%clk 0:01:00]} 23... Qe5 {[%clk
0:02:04.3]} 24. Qg6+ {[%clk 0:00:58.7]} 24... Kh8 {[%clk 0:02:05.2]} 25. Qh6#
{[%clk 0:01:00]} 1-0

[Event "*** Titled Tuesday Blitz"]
[Site "Chess.com"]
[Date "2018.05.01"]
[Round "5"]
[White "MatthewG-p4p"]
[Black "FairChess_on_YouTube"]
[Result "0-1"]
[WhiteElo "2607"]
[BlackElo "2871"]
[TimeControl "180+2"]
[EndTime "14:04:40 PDT"]
[Termination "FairChess_on_YouTube won by resignation"]

1. c4 {[%clk 0:03:01.9]} 1... g6 {[%clk 0:02:58.7]} 2. g3 {[%clk 0:03:00.8]}
2... Bg7 {[%clk 0:02:59.3]} 3. Bg2 {[%clk 0:03:02.3]} 3... e5 {[%clk 0:02:59.8]}
4. Nc3 {[%clk 0:03:03.3]} 4... Ne7 {[%clk 0:03:00.3]} 5. e3 {[%clk 0:03:03.2]}
5... O-O {[%clk 0:03:00.3]} 6. Nge2 {[%clk 0:03:04.7]} 6... d6 {[%clk
0:02:54.4]} 7. d3 {[%clk 0:03:05.8]} 7... c6 {[%clk 0:02:54.4]} 8. O-O {[%clk
0:03:06.5]} 8... Be6 {[%clk 0:02:55.8]} 9. b3 {[%clk 0:03:05]} 9... Re8 {[%clk
0:02:52.2]} 10. Bb2 {[%clk 0:02:49.9]} 10... d5 {[%clk 0:02:52.3]} 11. cxd5
{[%clk 0:02:49.3]} 11... cxd5 {[%clk 0:02:53]} 12. Rc1 {[%clk 0:02:50]} 12...
Nbc6 {[%clk 0:02:53.3]} 13. d4 {[%clk 0:02:49]} 13... exd4 {[%clk 0:02:44.4]}
14. Nxd4 {[%clk 0:02:36.9]} 14... Nxd4 {[%clk 0:02:44.9]} 15. exd4 {[%clk
0:02:38]} 15... Qd7 {[%clk 0:02:44.3]} 16. Re1 {[%clk 0:02:25.7]} 16... Nc6
{[%clk 0:02:41.7]} 17. Na4 {[%clk 0:02:17.7]} 17... b6 {[%clk 0:02:41]} 18. Qd2
{[%clk 0:02:18.6]} 18... h5 {[%clk 0:02:36.7]} 19. Bc3 {[%clk 0:02:18.5]} 19...
h4 {[%clk 0:02:34]} 20. Nb2 {[%clk 0:02:07.3]} 20... h3 {[%clk 0:02:31.2]} 21.
Bf1 {[%clk 0:02:07]} 21... Bf5 {[%clk 0:02:26.3]} 22. b4 {[%clk 0:02:02.7]}
22... Re4 {[%clk 0:02:18.7]} 23. Rxe4 {[%clk 0:01:39.4]} 23... Bxe4 {[%clk
0:02:19.6]} 24. b5 {[%clk 0:01:32.5]} 24... Nd8 {[%clk 0:02:15]} 25. Nd3 {[%clk
0:01:32.6]} 25... Qf5 {[%clk 0:02:01.3]} 26. Ne5 {[%clk 0:01:27.2]} 26... Bxe5
{[%clk 0:01:58.2]} 27. dxe5 {[%clk 0:01:14.4]} 27... Qf3 {[%clk 0:01:57.7]} 0-1

[Event "*** Titled Tuesday Blitz"]
[Site "Chess.com"]
[Date "2018.05.01"]
[Round "5"]
[White "pultineviciuspaulius"]
[Black "nOcHeaTiNgKiD"]
[Result "1-0"]
[WhiteElo "2537"]
[BlackElo "2362"]
[TimeControl "180+2"]
[EndTime "14:05:20 PDT"]
[Termination "pultineviciuspaulius won by resignation"]

1. d4 {[%clk 0:03:01.9]} 1... Nf6 {[%clk 0:02:59.9]} 2. Nf3 {[%clk 0:03:03.8]}
2... d5 {[%clk 0:03:00]} 3. Bf4 {[%clk 0:03:05.1]} 3... e6 {[%clk 0:02:53.1]} 4.
Nbd2 {[%clk 0:03:06.2]} 4... Bd6 {[%clk 0:02:52.8]} 5. Bg3 {[%clk 0:03:05.7]}
5... O-O {[%clk 0:02:52.2]} 6. e3 {[%clk 0:03:04.1]} 6... b6 {[%clk 0:02:47.3]}
7. Bd3 {[%clk 0:03:04.6]} 7... c5 {[%clk 0:02:46.1]} 8. c3 {[%clk 0:03:05.4]}
8... Ba6 {[%clk 0:02:47.3]} 9. Bxa6 {[%clk 0:03:03.1]} 9... Nxa6 {[%clk
0:02:49.2]} 10. O-O {[%clk 0:03:04.3]} 10... Nb8 {[%clk 0:02:48.3]} 11. Re1
{[%clk 0:03:04.6]} 11... Nc6 {[%clk 0:02:46.8]} 12. Qa4 {[%clk 0:03:01.8]} 12...
Bxg3 {[%clk 0:02:42.4]} 13. hxg3 {[%clk 0:03:01.2]} 13... Qc7 {[%clk 0:02:41.8]}
14. Rac1 {[%clk 0:02:25.4]} 14... Rfd8 {[%clk 0:02:32.7]} 15. c4 {[%clk
0:02:23.6]} 15... Ne7 {[%clk 0:02:18.5]} 16. dxc5 {[%clk 0:02:23.8]} 16... bxc5
{[%clk 0:02:18.7]} 17. cxd5 {[%clk 0:02:25.3]} 17... exd5 {[%clk 0:02:18.2]} 18.
Nb3 {[%clk 0:02:25.7]} 18... c4 {[%clk 0:02:07.6]} 19. Nbd4 {[%clk 0:02:25.9]}
19... Qb6 {[%clk 0:01:56.5]} 20. b3 {[%clk 0:02:24.7]} 20... cxb3 {[%clk
0:01:51.3]} 21. Nxb3 {[%clk 0:02:25.4]} 21... Rac8 {[%clk 0:01:50.2]} 22. Red1
{[%clk 0:02:24.7]} 22... h6 {[%clk 0:01:45]} 23. Nfd4 {[%clk 0:02:25.4]} 23...
Ne4 {[%clk 0:01:41.2]} 24. Rxc8 {[%clk 0:02:21.2]} 24... Rxc8 {[%clk 0:01:31]}
25. Rc1 {[%clk 0:02:23.1]} 25... Rxc1+ {[%clk 0:01:23.7]} 26. Nxc1 {[%clk
0:02:25]} 26... Qf6 {[%clk 0:01:19.3]} 27. Nd3 {[%clk 0:02:23.5]} 27... Nf5
{[%clk 0:01:08.3]} 28. Qxa7 {[%clk 0:02:19.7]} 28... Nexg3 {[%clk 0:00:35.8]}
29. fxg3 {[%clk 0:02:15.2]} 29... Nxe3 {[%clk 0:00:36.5]} 30. Qb8+ {[%clk
0:02:12.5]} 30... Kh7 {[%clk 0:00:36.3]} 31. Qf4 {[%clk 0:02:14.4]} 31... Qe7
{[%clk 0:00:32.6]} 32. Qe5 {[%clk 0:02:12.9]} 1-0

[Event "*** Titled Tuesday Blitz"]
[Site "Chess.com"]
[Date "2018.05.01"]
[Round "5"]
[White "Sven_Tica"]
[Black "tomsishere"]
[Result "1-0"]
[WhiteElo "2638"]
[BlackElo "2357"]
[TimeControl "180+2"]
[EndTime "14:05:35 PDT"]
[Termination "Sven_Tica won on time"]

1. d4 {[%clk 0:03:01.9]} 1... Nf6 {[%clk 0:02:59.7]} 2. c4 {[%clk 0:03:02]} 2...
g6 {[%clk 0:03:00.8]} 3. Nc3 {[%clk 0:03:01.2]} 3... d5 {[%clk 0:03:01.4]} 4.
Bf4 {[%clk 0:03:01.3]} 4... Bg7 {[%clk 0:03:01.2]} 5. e3 {[%clk 0:03:02.8]} 5...
O-O {[%clk 0:03:01.4]} 6. Rc1 {[%clk 0:03:04.3]} 6... Be6 {[%clk 0:03:01.4]} 7.
c5 {[%clk 0:03:05.8]} 7... c6 {[%clk 0:03:01.5]} 8. h3 {[%clk 0:03:07.1]} 8...
b6 {[%clk 0:02:58.5]} 9. b4 {[%clk 0:03:07.3]} 9... a5 {[%clk 0:02:59.3]} 10.
Na4 {[%clk 0:03:07.5]} 10... axb4 {[%clk 0:02:44.3]} 11. Nxb6 {[%clk 0:03:05.4]}
11... Rxa2 {[%clk 0:02:40.8]} 12. Qb3 {[%clk 0:03:06.3]} 12... Ra7 {[%clk
0:02:38]} 13. Nf3 {[%clk 0:02:56.5]} 13... Nfd7 {[%clk 0:02:27.8]} 14. Qxb4
{[%clk 0:02:52.3]} 14... Rb7 {[%clk 0:02:26.3]} 15. Rb1 {[%clk 0:02:40.2]} 15...
Bf5 {[%clk 0:02:18.4]} 16. Rb2 {[%clk 0:02:32.7]} 16... Be4 {[%clk 0:02:14.3]}
17. Be2 {[%clk 0:02:31.7]} 17... e5 {[%clk 0:02:06.5]} 18. dxe5 {[%clk
0:01:56.4]} 18... Nxb6 {[%clk 0:01:50.4]} 19. cxb6 {[%clk 0:01:43.6]} 19... Nd7
{[%clk 0:01:50.5]} 20. O-O {[%clk 0:01:39.7]} 20... Rxb6 {[%clk 0:01:44.4]} 21.
Qc3 {[%clk 0:01:38.6]} 21... Rxb2 {[%clk 0:01:42.7]} 22. Qxb2 {[%clk 0:01:40.5]}
22... Qe7 {[%clk 0:01:25.6]} 23. Qb7 {[%clk 0:01:38.6]} 1-0

[Event "*** Titled Tuesday Blitz"]
[Site "Chess.com"]
[Date "2018.05.01"]
[Round "5"]
[White "ChessicallyInclined"]
[Black "colegiodemadrid"]
[Result "1-0"]
[WhiteElo "2206"]
[BlackElo "2285"]
[TimeControl "180+2"]
[EndTime "14:05:38 PDT"]
[Termination "ChessicallyInclined won by resignation"]

1. d4 {[%clk 0:03:01.9]} 1... Nf6 {[%clk 0:03:00.2]} 2. c4 {[%clk 0:03:01.7]}
2... c5 {[%clk 0:03:01.3]} 3. d5 {[%clk 0:03:02.6]} 3... b5 {[%clk 0:03:02.2]}
4. cxb5 {[%clk 0:03:04]} 4... a6 {[%clk 0:03:03.6]} 5. f3 {[%clk 0:03:05.6]}
5... axb5 {[%clk 0:02:54.6]} 6. e4 {[%clk 0:03:06]} 6... Qa5+ {[%clk 0:02:54.7]}
7. Bd2 {[%clk 0:03:07.1]} 7... b4 {[%clk 0:02:56.1]} 8. Na3 {[%clk 0:03:08]}
8... d6 {[%clk 0:02:51.3]} 9. Nc4 {[%clk 0:03:08.3]} 9... Qc7 {[%clk 0:02:52.7]}
10. a3 {[%clk 0:03:07]} 10... bxa3 {[%clk 0:02:47.4]} 11. bxa3 {[%clk
0:03:04.5]} 11... g6 {[%clk 0:02:47.7]} 12. Bd3 {[%clk 0:02:59.9]} 12... Bg7
{[%clk 0:02:46.6]} 13. Ne2 {[%clk 0:02:58.8]} 13... O-O {[%clk 0:02:47.3]} 14.
O-O {[%clk 0:02:59.2]} 14... e6 {[%clk 0:02:48.5]} 15. dxe6 {[%clk 0:02:41]}
15... fxe6 {[%clk 0:02:47.4]} 16. Bf4 {[%clk 0:02:40.3]} 16... Nc6 {[%clk
0:02:38.2]} 17. Bxd6 {[%clk 0:02:37.6]} 17... Qa7 {[%clk 0:02:33.2]} 18. Bxf8
{[%clk 0:02:36.7]} 18... Bxf8 {[%clk 0:02:31.8]} 19. Kh1 {[%clk 0:02:34.6]}
19... e5 {[%clk 0:02:30.4]} 20. Ne3 {[%clk 0:02:31.7]} 20... Nh5 {[%clk
0:02:28.1]} 21. Bc4+ {[%clk 0:02:32.6]} 21... Kh8 {[%clk 0:02:28]} 22. Bd5
{[%clk 0:02:34]} 22... Bb7 {[%clk 0:02:20.5]} 23. Bxc6 {[%clk 0:02:35]} 23...
Bxc6 {[%clk 0:02:22.1]} 24. Nc3 {[%clk 0:02:29.4]} 24... Bg7 {[%clk 0:02:22.7]}
25. Ncd5 {[%clk 0:02:30.2]} 25... Bb5 {[%clk 0:02:19]} 26. Rf2 {[%clk
0:02:29.4]} 26... c4 {[%clk 0:02:18.9]} 27. Rb2 {[%clk 0:02:26.9]} 27... Ba4
{[%clk 0:02:17]} 28. Qd2 {[%clk 0:02:26.4]} 28... Rc8 {[%clk 0:02:11.4]} 29. Qc3
{[%clk 0:02:22.6]} 29... Nf4 {[%clk 0:02:09.7]} 30. Rb4 {[%clk 0:02:13.2]} 30...
Qd4 {[%clk 0:02:02.3]} 31. Rxa4 {[%clk 0:02:05.3]} 31... Ne2 {[%clk 0:01:56.8]}
32. Qxd4 {[%clk 0:01:59.6]} 32... exd4 {[%clk 0:01:57.3]} 33. Rxc4 {[%clk
0:01:55.5]} 33... Rb8 {[%clk 0:01:51.9]} 34. Nf1 {[%clk 0:01:50.9]} 34... h5
{[%clk 0:01:49.9]} 35. Nb4 {[%clk 0:01:48]} 35... h4 {[%clk 0:01:47.6]} 36. Nd3
{[%clk 0:01:46.8]} 36... h3 {[%clk 0:01:47]} 37. gxh3 {[%clk 0:01:46.2]} 37...
Rb3 {[%clk 0:01:48.4]} 38. Rd1 {[%clk 0:01:41.9]} 38... Nc3 {[%clk 0:01:45.9]}
39. Rd2 {[%clk 0:01:42.9]} 39... Nb1 {[%clk 0:01:44.4]} 40. Rb2 {[%clk
0:01:37.8]} 40... Rxd3 {[%clk 0:01:38.1]} 41. Rxb1 {[%clk 0:01:38.5]} 41... Rxf3
{[%clk 0:01:39.6]} 42. Ng3 {[%clk 0:01:38.7]} 42... d3 {[%clk 0:01:38.4]} 43.
Kg2 {[%clk 0:01:39]} 43... Re3 {[%clk 0:01:38.6]} 44. Rd1 {[%clk 0:01:39.2]} 1-0

[Event "*** Titled Tuesday Blitz"]
[Site "Chess.com"]
[Date "2018.05.01"]
[Round "5"]
[White "Yurovskykh_Oleksandr"]
[Black "toad"]
[Result "1-0"]
[WhiteElo "2350"]
[BlackElo "2194"]
[TimeControl "180+2"]
[EndTime "14:05:40 PDT"]
[Termination "Yurovskykh_Oleksandr won by resignation"]

1. e4 {[%clk 0:02:58.5]} 1... c5 {[%clk 0:03:00.8]} 2. Nf3 {[%clk 0:02:59]} 2...
d6 {[%clk 0:03:02.1]} 3. Bb5+ {[%clk 0:02:59.9]} 3... Nd7 {[%clk 0:03:02.7]} 4.
O-O {[%clk 0:02:59.9]} 4... e6 {[%clk 0:03:03]} 5. Re1 {[%clk 0:02:55.9]} 5...
Nf6 {[%clk 0:03:03.3]} 6. c3 {[%clk 0:02:55.4]} 6... a6 {[%clk 0:03:03.7]} 7.
Bf1 {[%clk 0:02:56.2]} 7... b5 {[%clk 0:03:03.9]} 8. d4 {[%clk 0:02:57]} 8...
cxd4 {[%clk 0:03:01]} 9. cxd4 {[%clk 0:02:57.5]} 9... Be7 {[%clk 0:02:41.5]} 10.
a4 {[%clk 0:02:39]} 10... b4 {[%clk 0:02:27.1]} 11. Bg5 {[%clk 0:02:12.3]} 11...
O-O {[%clk 0:02:14.5]} 12. Nbd2 {[%clk 0:02:12.7]} 12... Bb7 {[%clk 0:02:14.5]}
13. Bd3 {[%clk 0:02:08.1]} 13... Rc8 {[%clk 0:02:10]} 14. Qe2 {[%clk 0:02:08.8]}
14... Qb6 {[%clk 0:02:09.2]} 15. h3 {[%clk 0:02:04.7]} 15... a5 {[%clk
0:02:09.4]} 16. b3 {[%clk 0:01:53.7]} 16... Rc7 {[%clk 0:01:46.6]} 17. Bb5
{[%clk 0:01:39]} 17... Rfc8 {[%clk 0:01:41.4]} 18. Nc4 {[%clk 0:01:32.3]} 18...
Qa7 {[%clk 0:01:33.1]} 19. e5 {[%clk 0:01:31.4]} 19... dxe5 {[%clk 0:01:19.1]}
20. dxe5 {[%clk 0:01:26.2]} 20... Nd5 {[%clk 0:01:18.3]} 21. Bxe7 {[%clk
0:01:26.8]} 21... Nxe7 {[%clk 0:01:19.1]} 22. Nd6 {[%clk 0:01:28]} 22... Rc2
{[%clk 0:01:05.9]} 23. Nxc8 {[%clk 0:01:23.5]} 1-0

[Event "*** Titled Tuesday Blitz"]
[Site "Chess.com"]
[Date "2018.05.01"]
[Round "5"]
[White "rasmussvane"]
[Black "MartinMatthiesen"]
[Result "1-0"]
[WhiteElo "2602"]
[BlackElo "2360"]
[TimeControl "180+2"]
[EndTime "14:05:47 PDT"]
[Termination "rasmussvane won by resignation"]

1. Nf3 {[%clk 0:03:01.9]} 1... c5 {[%clk 0:02:59.1]} 2. c4 {[%clk 0:03:02.6]}
2... Nc6 {[%clk 0:02:59.3]} 3. Nc3 {[%clk 0:03:03.7]} 3... g6 {[%clk 0:02:58.2]}
4. e3 {[%clk 0:03:04.9]} 4... Nf6 {[%clk 0:02:58.4]} 5. d4 {[%clk 0:03:06.5]}
5... cxd4 {[%clk 0:02:58.9]} 6. exd4 {[%clk 0:03:08.4]} 6... d5 {[%clk
0:03:00.2]} 7. cxd5 {[%clk 0:03:10]} 7... Nxd5 {[%clk 0:03:01.1]} 8. Qb3 {[%clk
0:03:11.6]} 8... e6 {[%clk 0:02:54.6]} 9. Bb5 {[%clk 0:03:13]} 9... Bg7 {[%clk
0:02:51.5]} 10. O-O {[%clk 0:03:13.8]} 10... O-O {[%clk 0:02:52]} 11. Bxc6
{[%clk 0:03:15.2]} 11... bxc6 {[%clk 0:02:52.5]} 12. Na4 {[%clk 0:03:16.8]}
12... Ba6 {[%clk 0:02:41.6]} 13. Re1 {[%clk 0:03:16.2]} 13... Rb8 {[%clk
0:02:41.6]} 14. Qd1 {[%clk 0:03:14.4]} 14... Qa5 {[%clk 0:01:55.1]} 15. Nc5
{[%clk 0:03:06.9]} 15... Rfd8 {[%clk 0:01:53.9]} 16. Bd2 {[%clk 0:03:06.8]}
16... Qb6 {[%clk 0:01:53.7]} 17. Rc1 {[%clk 0:02:57.3]} 17... Ne7 {[%clk
0:01:42.7]} 18. Qa4 {[%clk 0:02:52.8]} 18... Bb5 {[%clk 0:01:38.3]} 19. Qa3
{[%clk 0:02:53.8]} 19... Qc7 {[%clk 0:01:02.8]} 20. Ba5 {[%clk 0:02:52.2]} 20...
Rb6 {[%clk 0:01:03.6]} 21. Ne4 {[%clk 0:02:44.4]} 21... Nf5 {[%clk 0:01:00.1]}
22. Bxb6 {[%clk 0:02:26.2]} 22... axb6 {[%clk 0:00:59.3]} 23. Nc3 {[%clk
0:02:20]} 23... Qb7 {[%clk 0:00:24.7]} 24. Nxb5 {[%clk 0:02:08.5]} 24... cxb5
{[%clk 0:00:25.7]} 25. Qb3 {[%clk 0:02:09.6]} 25... Bxd4 {[%clk 0:00:20]} 26.
Qxb5 {[%clk 0:02:08.5]} 26... Bg7 {[%clk 0:00:18.4]} 27. Red1 {[%clk 0:02:05.9]}
27... Ra8 {[%clk 0:00:18.3]} 28. Rd7 {[%clk 0:02:04.9]} 28... Qe4 {[%clk
0:00:19.2]} 29. Qc6 {[%clk 0:01:48.4]} 29... Rf8 {[%clk 0:00:18.4]} 30. Qxe4
{[%clk 0:01:48.7]} 1-0